{"text_format":"2","workbook":"xlsx","n_sheets":7,"sheets":["Monthly Planning Calendar","LinkedIn ","BDM Blog","Twitter ","Facebook","Client Spotlight","Content Repository"],"not_rendered":{"charts":0,"images":0,"macros":0,"external_links":0,"defined_names":0,"comments":1,"pivot_tables":0},"unopened":[],"bounds":{"document_bytes":16777216,"sheet_cells":100000,"run_cost":"one","rows_first":2000,"rows_last":500,"rows_between":2000,"halvings":0,"cell_chars":16384,"cell_head_chars":4096},"cells_cut":0,"cells_raw":0,"read":"whole","date_system":"1900"}

{"sheet":"Monthly Planning Calendar","index":0,"n_rows":45,"n_cols":7,"rows_kept":45,"cut":false,"hidden":false,"merged":[[38,0,38,6],[45,0,46,6],[0,0,9,5],[10,0,10,6],[17,0,17,6],[24,0,24,6],[31,0,31,6],[0,6,1,6]]}
["2017-06-01",{"$nulls":5},"KEY:"]
[]
[{"$nulls":6},"Campaign"]
[{"$nulls":6},"Ebook"]
[{"$nulls":6},"Webinar"]
[{"$nulls":6},"Blog Post"]
[{"$nulls":6},"SlideShare"]
[{"$nulls":6},"Product Launch"]
[{"$nulls":6},"Shared Content"]
[{"$nulls":6},"Other"]
[]
["SUNDAY","MONDAY","TUESDAY","WEDNESDAY","THURSDAY","FRIDAY","SATURDAY"]
[]
[]
[]
[]
[null,"Shared Content","Shared Content","Shared Content","Shared Content","Shared Content"]
[]
["SUNDAY","MONDAY","TUESDAY","WEDNESDAY","THURSDAY","FRIDAY","SATURDAY"]
[]
[]
[]
[]
[null,"Shared Content","Shared Content","Shared Content","Shared Content","Shared Content"]
[]
["SUNDAY","MONDAY","TUESDAY","WEDNESDAY","THURSDAY","FRIDAY","SATURDAY"]
[]
[]
[]
[]
[null,"Shared Content","Shared Content","Shared Content","Shared Content","Shared Content"]
[]
["SUNDAY","MONDAY","TUESDAY","WEDNESDAY","THURSDAY","FRIDAY","SATURDAY"]
[]
[]
[]
[]
[null,"Shared Content","Shared Content","Shared Content","Shared Content","Shared Content"]
[]
["SUNDAY","MONDAY","TUESDAY","WEDNESDAY","THURSDAY","FRIDAY","SATURDAY"]
[]
[]
[]
[]
[null,"Shared Content","Shared Content","Shared Content","Shared Content","Shared Content"]

{"sheet":"LinkedIn ","index":1,"n_rows":10,"n_cols":10,"rows_kept":10,"cut":false,"hidden":false,"merged":[[1,0,1,28]]}
["DAY","DATE","TIME",null,"TITLE (For Group Discussions Only)","MESSAGE","LINK","RATIONALE","CAMPAIGN","IMAGE"]
[]
["MONDAY","2017-06-19","14:00:00",null,"13 Marketing Trends For 2017 That B2B Marketers need to understand","Agile marketing and visual content are two of the digital marketing trends we're seeing our B2B clients embrace this year. Curious to know how other marketers feel about the rest of the list.","https://www.forbes.com/sites/steveolenski/2017/01/20/13-marketing-trends-for-2017-that-b2b-marketers-need-to-understand/#51fd0cdf1516",null,"N/A","N/A"]
["MONDAY","2017-06-26",null,null,"Five Top Content Leaders Shed Light on the Needs of Modern B2B Marketing","Content is key and B2B companies need more of it, Here’s what five top content leaders say about the needs of modern B2B marketing.","https://www.marketingprofs.com/articles/2017/31598/five-top-content-leaders-shed-light-on-the-needs-of-modern-b2b-marketing",null,"\nN/A","N/A"]
[]
[]
[]
["Monday","2017-06-26",null,null,"Forrester Predicts Investment In Artificial Intelligence Will Grow 300% in 2017","Businesses that use artificial intelligence (AI), big data and the Internet of Things (IoT) technologies are growing fast. Here's what Forrester predicts for 2017.","https://www.forbes.com/sites/gilpress/2016/11/01/forrester-predicts-investment-in-artificial-intelligence-will-grow-300-in-2017/#7bfb359d5509","This article highlights the growing importance of AI in businesses that mine data, such as marketing."]
[]
["Monday","2017-06-26",null,"Campaign- Spotlight on our client","Recruiters Turn to Chat Based Messaging to Find Talent","See how recruiters use target marketing and instant chat messaging to engage job candidates, allowing them to \"swipe right\" for the perfect candidate using our client @Brazen Technologies web-based, mobile-optimized platform.","https://www.shrm.org/resourcesandtools/hr-topics/technology/pages/recruiters-turn-to-chat-based-messaging-to-find-talent.aspx","This article gives a great example of how Brazen Technologies web-based,mobile-optimized, instant chat messaging service is being used by job candidates and recruiters."]

{"sheet":"BDM Blog","index":2,"n_rows":9,"n_cols":8,"rows_kept":9,"cut":false,"hidden":false,"merged":[[1,0,1,26]]}
["DAY","DATE","TIME","MESSAGE","LINK","RATIONALE","CAMPAIGN","IMAGE"]
[]
["TUESDAY","2017-06-20","5:00 PM MT","Wondering when is the right time to hire a digital marketing agency for your B2B Business? Our CEO, Whitney Parker Mitchell, weighs in on the blog.",null,null,"N/A","N/A"]
[]
[]
[]
[]
[]
["TUESDAY","2017-06-27",null,"Marketers are buzzing about programmatic advertising - but how can it help B2B companies? Check out our take on the blog.",null,null,"\nN/A","N/A"]

{"sheet":"Twitter ","index":3,"n_rows":68,"n_cols":10,"rows_kept":68,"cut":false,"hidden":false,"merged":[[1,0,1,9]]}
["DAY","DATE","TIME","Campaign- Spotlight on our client","COPY","LINK","RATIONALE","CAMPAIGN NAME","CHARACTER COUNT","IMAGE"]
[]
["THURSDAY","2017-06-22",null,null,"Improving your #marketingstrategy starts with understanding why your current strategy is outdated. ","http://www.marketingeye.com.au/marketing-blog/marketing/why-your-marketing-strategy-is-out-dated.html",null,"N/A",{"$f":"LEN(E3)","v":99},"N/A"]
["THURSDAY","2017-06-29",null,null,"Check out this infographic @marketingprofs to see why #socialmedia #marketingautomation go hand in hand.","https://www.marketingprofs.com/chirp/2017/32199/why-social-media-is-the-best-thing-to-happen-to-marketing-automation-infographic?adref=nlt061317",null,"N/A",104,"N/A"]
[{"$nulls":8},0]
[{"$nulls":8},0]
[{"$nulls":8},0]
[{"$nulls":8},0]
[{"$nulls":8},0]
[{"$nulls":8},0.0]
[{"$nulls":8},{"$f":"LEN(E11)","v":0}]
["THURSDAY","2017-06-29",{"$nulls":6},0]
[{"$nulls":8},0]
[{"$nulls":8},0]
[{"$nulls":8},0]
[{"$nulls":8},0]
[{"$nulls":8},0]
[{"$nulls":8},0]
[{"$nulls":8},0]
[{"$nulls":8},0]
[{"$nulls":8},0]
[{"$nulls":8},0]
[{"$nulls":8},0]
[{"$nulls":8},0]
[{"$nulls":8},0]
[{"$nulls":8},0]
[{"$nulls":8},0]
[{"$nulls":8},0]
[{"$nulls":8},0]
[{"$nulls":8},0]
[{"$nulls":8},0]
[{"$nulls":8},0]
[{"$nulls":8},0]
[{"$nulls":8},0]
[{"$nulls":8},0]
[{"$nulls":8},0]
[{"$nulls":8},0]
[{"$nulls":8},0]
[{"$nulls":8},0]
[{"$nulls":8},0]
[{"$nulls":8},0]
[{"$nulls":8},0]
[{"$nulls":8},0]
[{"$nulls":8},0]
[{"$nulls":8},0]
[{"$nulls":8},0]
[{"$nulls":8},0]
[{"$nulls":8},0]
[{"$nulls":8},0]
[{"$nulls":8},0]
[{"$nulls":8},0]
[{"$nulls":8},0]
[{"$nulls":8},0]
[{"$nulls":8},0]
[{"$nulls":8},0]
[{"$nulls":8},0]
[{"$nulls":8},0]
[{"$nulls":8},0]
[{"$nulls":8},0]
[{"$nulls":8},0.0]
[{"$nulls":8},{"$f":"LEN(E61)","v":0}]
[{"$nulls":8},0]
[{"$nulls":8},0]
[{"$nulls":8},0]
[{"$nulls":8},0]
[{"$nulls":8},0]
[{"$nulls":8},0]
[{"$nulls":8},0]

{"sheet":"Facebook","index":4,"n_rows":15,"n_cols":9,"rows_kept":15,"cut":false,"hidden":false,"merged":[[1,0,1,8]]}
["DAY","DATE","TIME","Campaign- Spotlight on our client","MESSAGE","LINK","RATIONALE","CAMPAIGN","IMAGE"]
[]
["FRIDAY","2017-06-23",null,null,"A leadership blog is one of the keys to a successful social media strategy. Read on to find out 8 more.","https://leadtail.com/b2b-social-media-marketing/trends-2017/",null,"N/A\n","N/A"]
["FRIDAY","2017-06-30",null,null,"We're keying in on #7 in this list to find the best way to organically integrate content creation and SEO best practices for B2B companies","https://komarketing.com/blog/digital-trends-to-inspire-your-2017-b2b-content-marketing-strategy/",null,"N/A\n","N/A"]
{"$rows_empty":8}
["FRIDAY","2017-06-30",null,null,"Crafting a B2B markeing strategy? Find out strategies to help your company grow.","https://www.forbes.com/sites/ajagrawal/2016/08/02/how-to-create-a-successful-b2b-marketing-strategy/#3c9567943e82","This article contain marketing strategies for B2B companies."]
[{"$nulls":6},"h"]
["FRIDAY","2017-06-30",null,null,"Facebook wants to attract more B2B marketers and recruiting professionals See how Facebook plans to compete with Linked In.","http://www.businessinsider.com/facebook-is-going-after-b2b-marketing-spending-2014-1","Advertisers will be able to target Facebook users based on their employer and job title."]

{"sheet":"Client Spotlight","index":5,"n_rows":4,"n_cols":8,"rows_kept":4,"cut":false,"hidden":false,"merged":[[1,0,1,26]]}
["DAY","DATE","TIME","MESSAGE","LINK","RATIONALE","CAMPAIGN","IMAGE"]
[]
["WEDNESDAY","2017-06-21","11:40 am MT","Email is a proven medium for reaching customers, and the territory for innovation is vast. Our client, @stensul, an Email Creation Platform that takes the endless process headaches out of email creation, is a prime example.","http://marketingland.com/email-taking-center-stage-marketing-innovation-207842",null,"N/A","N/A"]
["WEDNESDAY","2017-06-28",null,"See how recruiters use target marketing and instant chat messaging to engage job candidates, allowing them to \"swipe right\" for the perfect candidate using our client @Brazen Technologies web-based, mobile-optimized platform.","https://www.shrm.org/resourcesandtools/hr-topics/technology/pages/recruiters-turn-to-chat-based-messaging-to-find-talent.aspx",null,"\nN/A","N/A"]

{"sheet":"Content Repository","index":6,"n_rows":1,"n_cols":6,"rows_kept":1,"cut":false,"hidden":false,"merged":[]}
["CONTENT TYPE","TITLE","LINK","INTERESTING SNIPPET","IMAGE","EXPIRATION"]